Cogmind - Beta 11.1 @@@ ROGUE MODE // 2022.05.25 @ 23:37:24 Player: Ruxi Result: Destroyed by D-53 Grenadier with Mini Grenade Launcher Performance ------------- Evolutions (0) 0 Regions Visited (2) 400 Robots Destroyed (15) 75 Value Destroyed (431) 431 Prototype IDs (0) 0 Alien Tech Used (0) 0 Bonus (0) 0 TOTAL SCORE: 906 Bonus ------- None Cogmind --------- Core Integrity 0/250 Matter 234/300 Energy 19/100 System Corruption 0% Temperature Cool (0) Movement Treading (160) Location -10/Mines Parts ------- > --- POWER (1) -------- (None) > --- PROPULSION (2) --- Improved Treads Improved Treads > --- UTILITY (2) ------ Large Storage Unit Light Armor Plating > --- WEAPON (2) ------- (None) > --- INVENTORY (15) --- Light Treads Light Treads Improved Treads Improved Treads High-capacity Storage Unit Structural Scanner Light Armor Plating Assault Rifle Light Assault Rifle Peak State ------------ > --- POWER ------------ Light Ion Engine > --- PROPULSION ------- Aluminum Leg Aluminum Leg > --- UTILITY ---------- Improved Heat Sink Small Storage Unit > --- WEAPON ----------- Small Laser Small Laser > --- INVENTORY -------- Ion Engine Light Nuclear Core Light Treads Light Treads Wheel Compact Wheel Structural Scanner Assault Rifle [Rating: 10] Favorites ----------- Power Ion Engine Engine Ion Engine Propulsion Aluminum Leg Treads Light Treads Leg Aluminum Leg Utility Structural Scanner Device Structural Scanner Storage Small Storage Unit Protection Medium Armor Plating Weapon Light Assault Rifle Energy Gun Small Laser Ballistic Gun Light Assault Rifle Launcher Grenade Launcher Special Weapon Mining Laser Build | -11 -10 -10 ------- Run | Scr Mat Min Slots Evolved . | . . . Power . | . . . Propulsion . | . . . Utility . | . . . Weapon . | . . . Parts Attached 24 | . 16 8 Power 1 | . 1 . Engine 1 | . 1 . Core . | . . . Reactor . | . . . Propulsion 9 | . 6 3 Treads 5 | . 2 3 Leg 4 | . 4 . Wheel . | . . . Hover . | . . . Flight . | . . . Utility 7 | . 5 2 Device 3 | . 3 . Storage 2 | . 2 . Processor . | . . . Hackware . | . . . Protection 2 | . . 2 Artifact . | . . . Weapon 7 | . 4 3 Energy Gun 1 | . 1 . Energy Cannon . | . . . Ballistic Gun 3 | . 3 . Ballistic Cannon . | . . . Launcher 1 | . . 1 Special Weapon 2 | . . 2 Impact Weapon . | . . . Slashing Weapon . | . . . Piercing Weapon . | . . . Special Melee Weapon . | . . . Unidentified Prototypes . | . . . Parts Lost 5 | . . 5 Power 1 | . . 1 Propulsion . | . . . Utility 1 | . . 1 Weapon 3 | . . 3 Highest Loss Streak 5 | . . 5 To Critical Strikes . | . . . Average Slot Usage (%) 99 | . 99 93 Engine 13 | . 14 10 Treads 14 | . 12 28 Leg 14 | . 15 . Device 13 | . 13 10 Storage 14 | . 14 14 Energy Gun 4 | . 4 . Ballistic Gun 22 | . 22 21 Naked Turns . | . . . Heaviest Build 29 | 11 29 29 Greatest Support 46 | 20 40 46 Greatest Overweight (x) . | . . . Average Overweight (x) . | . . . Largest Inventory Capacity 15 | 8 15 15 Average Capacity 9 | 8 9 15 Most Carried 11 | 6 11 11 Average Carried 7 | 6 7 10 Final Capacity 15 | 8 15 15 Final Carried 11 | 6 11 9 Class Distribution -------------------- 100% | Mutant Dominant Class ---------------- Mutant | -10/Materials Mutant | -10/Mines Resources | -11 -10 -10 ----------- Run | Scr Mat Min Matter Collected 530 | 200 330 . Remotely . | . . . Salvage Created 580 | . 580 . Parts 33 | . 33 . Haulers Intercepted 2 | . 2 . Recyclers Shooed 1 | . 1 . Parts Field Recycled . | . . . Retrieved Matter . | . . . Parts Self-Destructed . | . . . Prevented . | . . . Kills | -11 -10 -10 ------- Run | Scr Mat Min Combat Hostiles Destroyed 10 | . 10 . Guns 10 | . 10 . Classes Destroyed 4 | . 4 . Hauler 2 | . 2 . Operator 1 | . 1 . Watcher 2 | . 2 . Grunt 10 | . 10 . Best Kill Streak 4 | . 4 . Combat Bots Only 4 | . 4 . Max Kills in Single Turn 1 | . 1 . Gunslinging . | . . . Exploded . | . . . Melee . | . . . Uniques/NPCs Destroyed . | . . . Combat | -11 -10 -10 -------- Run | Scr Mat Min Damage Taken 1566 | . 627 939 Core 255 | . 105 150 Absorbed by Shields . | . . . Core Remaining (%) 100 | 100 . . Volleys Fired 70 | . 69 1 Largest 2 | . 2 2 Hottest 80 | . 80 50 Shots Fired 138 | . 136 2 Gun 137 | . 136 1 Cannon . | . . . Launcher 1 | . . 1 Special . | . . . Kinetic 87 | . 86 1 Thermal 50 | . 50 . Explosive 1 | . . 1 Electromagnetic . | . . . Robot Hit Streak 14 | . 14 1 Robot Miss Streak 4 | . 4 1 Penetration Max . | . . . Secondary Targets 1 | . 1 . Max Gunslinging Chain 1 | . 1 . Shots Hit Robots 89 | . 88 1 Core Hits 36 | . 35 1 Critical Kills 1 | . 1 . Critical Parts Destroyed . | . . . Critical Strikes 1 | . 1 . Destroy 1 | . 1 . Melee Attacks . | . . . Impact . | . . . Slashing . | . . . Piercing . | . . . Sneak Attacks . | . . . Combat Hostiles . | . . . Follow-up Attacks . | . . . Damage Inflicted 944 | . 933 11 Guns 943 | . 933 10 Cannons . | . . . Explosions 1 | . . 1 Melee . | . . . Ramming . | . . . Kinetic 569 | . 559 10 Thermal 374 | . 374 . Explosive 1 | . . 1 Electromagnetic . | . . . Impact . | . . . Slashing . | . . . Piercing . | . . . Highest Corruption . | . . . Average Corruption . | . . . Corruption Purged . | . . . Corruption Blocked . | . . . Overload Shots . | . . . Overflow Damage . | . . . Projectiles . | . . . Explosions . | . . . Melee . | . . . Knockbacks . | . . . Impact . | . . . Kinetic . | . . . Secondary . | . . . Self-Inflicted Damage . | . . . Shots . | . . . Rammed . | . . . Targets Rammed . | . . . Kicked . | . . . Crushed . | . . . Highest Temperature 231 | . 231 16 Average Temperature 73 | . 75 12 Received Heat Transfer 354 | . 354 . Effects 1 | . 1 . Interference 1 | . 1 . Siege Activations . | . . . Robots Corrupted . | . . . Combat Hostiles . | . . . Parts Fried . | . . . Impact Corruptions . | . . . Robots Melted . | . . . Combat Hostiles . | . . . Parts Melted 2 | . 2 . Heat Transferred 875 | . 875 . Parts Sabotaged . | . . . Parts Stolen . | . . . Parts Stripped . | . . . Power Chain Reactions . | . . . Missiles Intercepted . | . . . Alert | -11 -10 -10 ------- Run | Scr Mat Min Peak Influence 223 | . 223 31 Initial 22 | . . 22 Average 55 | . 59 19 Maximum Alert Level 1 | . 1 . Low Security (%) 96 | 100 96 100 Level 1 3 | . 3 . Level 2 . | . . . Level 3 . | . . . Level 4 . | . . . Level 5 . | . . . High Security . | . . . Max Security . | . . . Squads Dispatched 2 | . 2 . Investigation 1 | . 1 . Extermination . | . . . Reinforcement 1 | . 1 . Assault . | . . . Garrison . | . . . Intercept . | . . . Searches Triggered . | . . . Construction Impeded . | . . . Haulers Reinforced . | . . . Active Scanning Responses . | . . . Cargo Convoy Interrupts . | . . . Stealth | -11 -10 -10 --------- Run | Scr Mat Min Distress Signals . | . . . Communications Jammed . | . . . Distress Signals . | . . . Times Spotted 20 | . 18 2 Peak Tracking Total 4 | . 4 2 Tactical Retreats . | . . . Traps | -11 -10 -10 ------- Run | Scr Mat Min Traps Triggered 3 | . 3 . Indirectly . | . . . Trap Hack Attempts . | . . . Triggered . | . . . Disarmed . | . . . Reprogrammed . | . . . Reused . | . . . Traps Extracted . | . . . Installed . | . . . Triggered . | . . . Machines | -11 -10 -10 ---------- Run | Scr Mat Min Machines Disabled . | . . . Max in Single Turn . | . . . Machines Sabotaged . | . . . Garrisons Compromised . | . . . Overloaded Fab Kills . | . . . Hacking | -11 -10 -10 --------- Run | Scr Mat Min Machines Accessed 8 | . 8 . Terminals 7 | . 7 . Fabricators . | . . . Repair Stations . | . . . Recycling Units 1 | . 1 . Scanalyzers . | . . . Garrison Access . | . . . Total Hacks 26 | . 26 . Successful 11 | . 11 . Failed 15 | . 15 . Catastrophic 4 | . 4 . Database Lockouts . | . . . Manual 26 | . 26 . Terminals 25 | . 25 . Fabricators . | . . . Repair Stations . | . . . Recycling Units 1 | . 1 . Scanalyzers . | . . . Garrison Access . | . . . Terminal Hacks 5 | . 5 . Branch Access Points 1 | . 1 . Terminal Index 1 | . 1 . Unreport Threat 3 | . 3 . Fabricator Hacks . | . . . Repair Station Hacks . | . . . Recycling Unit Hacks . | . . . Scanalyzer . | . . . Garrison Access Hacks . | . . . Unauthorized Hacks 6 | . 6 . Terminals 5 | . 5 . Botnet 4 | . 4 . Operators 1 | . 1 . Fabricators . | . . . Repair Stations . | . . . Recycling Units 1 | . 1 . Recyclers 1 | . 1 . Scanalyzers . | . . . Garrison Access . | . . . Data Cores Recovered . | . . . Used . | . . . Hacking Detections 7 | . 7 . Full Trace Events . | . . . Feedback Events . | . . . Feedback Blocked . | . . . Robot Schematics Acquired . | . . . Robots Built . | . . . Authchips . | . . . Time . | . . . Total Robot Build Rating . | . . . Part Schematics Acquired . | . . . Parts Built . | . . . Authchips . | . . . Time . | . . . Total Part Build Rating . | . . . Parts Repaired . | . . . Time . | . . . Parts Recycled . | . . . Recycled Matter . | . . . Retrieved Matter . | . . . Retrieved Components . | . . . Parts Scanalyzed . | . . . Part Schematics Acquired . | . . . Parts Damaged . | . . . Bothacking | -11 -10 -10 ------------ Run | Scr Mat Min Used RIF Installer . | . . . Robots Hacked . | . . . Non-combat . | . . . Combat . | . . . Robot Hacks Applied . | . . . Relay Couplers Released . | . . . Fabnet Peak Effective % . | . . . Robots Rewired . | . . . Allies Hacked . | . . . Hacks Repelled . | . . . Allies | -11 -10 -10 -------- Run | Scr Mat Min Total Allies . | . . . Largest Group . | . . . Highest-Rated Group . | . . . Highest-Rated Ally . | . . . Total Orders . | . . . Ally Attacks . | . . . Total Damage . | . . . Kills . | . . . Allies Corrupted . | . . . Allies Melted . | . . . Intel | -11 -10 -10 ------- Run | Scr Mat Min Robot Analysis Total . | . . . Derelict Logs Recovered . | . . . Drone Launches . | . . . Drone Recoveries . | . . . Exploration | -11 -10 -10 ------------- Run | Scr Mat Min Turns Passed 1229 | 9 1132 88 Spaces Moved 660 | 9 605 46 Core . | . . . Treads 334 | . 288 46 Legs 326 | 9 317 . Wheels . | . . . Hover . | . . . Flight . | . . . Fastest Speed 120 | 120 120 160 Average Speed 140 | 120 139 160 Slowest Speed 160 | 120 160 160 Overloaded Moves . | . . . Propulsion Burnouts . | . . . Robots Hopped . | . . . Cave-ins Triggered . | . . . Exploration Rate (%) 37 | 2 88 21 Regions Visited 2 Branch Regions 1 Pre-discovered Areas . | . . . Known Exits Taken 1 | . 1 . Unknown Exits Taken 1 | 1 . . Scrap Searched . | . . . Spaces Dug . | . . . Terrain Destroyed 5 | . . 5 Melee . | . . . Projectile . | . . . AOE 5 | . . 5 Terrain Rammed . | . . . Walls Destroyed . | . . . Machines Disabled . | . . . Actions | -11 -10 -10 --------- Run | Scr Mat Min Total 836 | 7 774 55 Wait 47 | . 47 . Move 657 | 7 604 46 Hop . | . . . Pick Up 19 | . 19 . Fast Attach 1 | . 1 . Attach 4 | . 2 2 Detach . | . . . Swap 19 | . 13 6 Drop 19 | . 19 . Fire 70 | . 69 1 Melee . | . . . Ram . | . . . Kick . | . . . Crush . | . . . Escape Stasis . | . . . Rewire . | . . . Trap . | . . . Miscellaneous . | . . . Route ------- -11/Scrapyard -10/Materials (discovered 4 exits: [*Mat x3] / *Min) -10/Mines History --------- Turn | Location | Event 1 | -11/Scrapyard | Discovered new exit (range 2) 10 | -11/Scrapyard | Entered Materials 313 | -10/Materials | Build established: Mutant 338 | -10/Materials | Identified exit to Mines 440 | -10/Materials | Discovered new exit (range 12) 840 | -10/Materials | Discovered new exit (range 15) 1005 | -10/Materials | Discovered new exit (range 12) 1142 | -10/Materials | Entered Mines 1143 | -10/Mines | Assembled infested the area 1201 | -10/Mines | Core integrity fell below 50% 1223 | -10/Mines | Core integrity fell below 20% 1230 | -10/Mines | Destroyed by D-53 Grenadier with Mini Grenade Launcher Last Messages --------------- 01027_ ALERT: Alarm triggered, dispatching investigation squad. 01034_ G-34 Mercenary destroyed. 01044_ Acquired 40 matter. 01045_ Acquired 32 matter. 01125_ Acquired 22 matter. 01133_ Acquired Mining Laser. LOCATION=MINES GOAL=ESCAPE Something is scanning the area. 01143_ ALERT: Infestation in the mines, dispatching Demolisher response squad. 01200_ Pressure Siphon disabled. 01214_ The unstable cave ceiling collapses. 01216_ Ion Engine destroyed. 01217_ The unstable cave ceiling collapses. 01220_ Grenade Launcher destroyed. 01221_ The unstable cave ceiling collapses. 01222_ Mining Laser destroyed. 01224_ Med. Armor Plating destroyed. 01226_ The unstable cave ceiling collapses. Map ----- +----------------------------------------------------+ | ?????????????????????????????????????????????????? | | #### ????????????????????????????????????????????? | | #####????????????????????????????????????????????? | | ##????????????????????????????????????????????? | | ##????????????????????????????????????????????? | | "" ##????????????????????????????????????????????? | | "" ##????????????????????????????????????????????? | | "" ##????????????????????????????????????????????? | | ##????????????????????????????????????????????? | | #######???????????????????????????????????????? | | #######????????????????? ?????????????????????? | | ##????????????????? ##??????????????????? | | #### ##????????????????? ##??????????????????? | | #### ##????????????????# ##??????????????????? | | #### ####?????????????? ###?????????????????? | | ####### ####?????????????? #######?????????????? | | ####### ##?????????????? ######?????????????? | | ?????#### #####??????????? ####???????????? | | ?######## ##########??#### % ####???????????? | | ######## ########## %% ???????????? | | ### ## """ ##### ##????????????? | | ## """ ## ###????????????? | | ## """ ## ## #####?????????????? | | ### ### # ####??????????????? | | ########### # d ###??????????????? | | ?########### ### d@ ##??????????????? | | ?????????### ## ##??????????????? | | ??????????## ## ##??????????????? | | ??????????### ### ###??????????????? | | ??????????######## ####??????????????? | | ???????????####### ######???????????????? | | ????????????????## #####????????????????? | | ????????????????### ##???????????????????? | | ?????????????????### ##???????????????????? | | ??????????????????### # # ##???????????????????? | | ?????????????????? u ##???????????????????? | | ???????????????????####### ###???????????????????? | | ???????????????????####??? #?????????????????????? | | ?????????????????????????? ?????????????????????? | | ?????????????????????????? ?????????????????????? | | ?????????????????????????? ????????????????????? | | ??????????????????????????? ????????????????????? | | ??????????????????????????? ? ???????????????????? | | ?????????????????????????????????????????????????? | | ?????????????????????????????????????????????????? | | ?????????????????????????????????????????????????? | | ?????????????????????????????????????????????????? | | ?????????????????????????????????????????????????? | | ?????????????????????????????????????????????????? | | ?????????????????????????????????????????????????? | +----------------------------------------------------+ Best States ------------- Heat Dissipation 39 Energy Generation 10 Energy Capacity 250 Matter Stores 300 Matter Capacity 300 Sight Range 16 Terrain Scan Density 10 Armor Coverage 225 Evasion (%) 55 Recoil Reduction 2 Item Schematics ----------------- None Robot Schematics ------------------ None Fabricated ------------ Nothing Alien Tech Used ----------------- None Achievements -------------- None Challenges ------------ None Game ------ Seed HardcellBlastBlade Manual? 0 Play Time 00:18:34 Cumulative 78.0 hours Start 2022.05.25 @ 23:18:42 End 2022.05.25 @ 23:37:24 Sessions 1 Manual Loads 0 Difficulty Rogue Special Mode None Game No. 57 Rogue 55 Adventurer 0 Explorer 2 Win Type - Total 0 Types 0/0/0/0/0/0/0/0/0 Lore% 25 Gallery% 32 Achievement% 28 Wizard Run 0 Options --------- ASCII 0 Keyboard 0 Movement Numpad Keybinds 0 Fullscreen 1 Font 18/SmallcapsGlow Map View 76x50 Tactical HUD 1 Map Filters NONE Filters NONE Steam 1 RUN: d230e943-814d-49b7-90bf-a1456629fc17